[Event "EYCC Open-U12 2019"]
[Site "Bratislava"]
[Date "2019.08.10"]
[Round "9.37"]
[White "Cherneyko, Ivan"]
[Black "Cohen, Elad"]
[Result "1/2-1/2"]
[ECO "E03"]
[WhiteElo "1743"]
[BlackElo "2002"]
[Annotator "NA RC"]
[PlyCount "89"]
[EventDate "2019.08.02"]
[EventType "swiss"]
[EventCountry "SVK"]
[SourceTitle "playchess.com"]
[Source "ChessBase"]
[SourceQuality "1"]
[TimeControl "40/5400+30:1800+30"]

1. d4 {[%emt 0:00:43]} Nf6 {[%emt 0:00:00]} 2. c4 {[%emt 0:00:12]} e6 {[%emt 0:00:03]} 3. g3 {[%emt 0:01:08]} d5 {[%emt 0:00:27]} 4. Bg2 {[%emt 0:00:55]} dxc4 {[%emt 0:00:28]} 5. Qa4+ {[%emt 0:00:22]} Nbd7 {[%emt 0:00:54]} 6. Qxc4 {[%emt 0:00:15]} a6 {[%emt 0:00:53]} 7. Qc2 {[%emt 0:02:27]} c5 {[%emt 0:04:27]} 8. Nf3 {[%emt 0:02:59]} cxd4 9. Nxd4 {[%emt 0:02:32]} Bc5 {[%emt 0:07:51]} 10. Nb3 Bb4+ {[%emt 0:02:25]} 11. Bd2 {[%emt 0:03:16]} Bxd2+ {[%emt 0:00:16]} 12. N1xd2 {[%emt 0:00:12]} O-O {[%emt 0:00:46]} 13. O-O {[%emt 0:01:09]} Rb8 {[%emt 0:06:27]} 14. Rfd1 {[%emt 0:13:27]} b6 {[%emt 0:11:24]} 15. Ne4 {[%emt 0:20:28]} Bb7 {[%emt 0:01:59]} 16. Nd6 {[%emt 0:00:21]} Bxg2 {[%emt 0:03:03]} 17. Kxg2 {[%emt 0:00:05]} Qe7 {[%emt 0:02:10]} 18. e4 {[%emt 0:02:17]} Nc5 {[%emt 0:05:58]} 19. Nxc5 {[%emt 0:04:50]} bxc5 {[%emt 0:00:20]} 20. b3 {[%emt 0:00:34]} Qc7 {[%emt 0:07:34]} 21. Qe2 {[%emt 0:10:30]} a5 {[%emt 0:05:50]} 22. Rd2 {[%emt 0:09:31]} Rfd8 {[%emt 0:07:20]} 23. Rad1 {[%emt 0:00:26]} h6 {[%emt 0:00:33]} 24. Qa6 {[%emt 0:09:58]} Qb6 {[%emt 0:08:55]} 25. Qc4 {[%emt 0:01:57]} Qb4 {[%emt 0:03:15]} 26. e5 {[%emt 0:08:55]} Nd5 {[%emt 0:01:48]} 27. Rc2 {[%emt 0:00:42]} Qxc4 {[%emt 0:00:59]} 28. bxc4 {[%emt 0:00:09]} Nb4 {[%emt 0:03:07]} 29. Rcd2 {[%emt 0:02:53]} Nc6 {[%emt 0:01:43]} 30. f4 {[%emt 0:00:17]} Rb4 {[%emt 0:00:29]} 31. Kf2 {[%emt 0:01:06]} f6 {[%emt 0:02:47]} 32. exf6 {[%emt 0:00:30]} gxf6 {[%emt 0:00:02]} 33. Ne4 {[%emt 0:00:45]} Rxd2+ {[%emt 0:00:15]} 34. Rxd2 {[%emt 0:00:11]} Rxc4 {[%emt 0:01:04]} 35. Nxf6+ {[%emt 0:00:05]} Kg7 {[%emt 0:00:37]} 36. Ne8+ {[%emt 0:00:30]} Kf8 {[%emt 0:01:57]} 37. Nc7 {[%emt 0:00:37]} Ke7 {[%emt 0:00:51]} 38. Nb5 {[%emt 0:00:41]} e5 {[%emt 0:02:59]} 39. fxe5 {[%emt 0:00:38]} Nxe5 {[%emt 0:01:02]} 40. Re2 {[%emt 0:00:00]} Ke6 {[%emt 0:00:00]} 41. Nc7+ {[%emt 0:02:02]} Kd6 {[%emt 0:06:14]} 42. Ne8+ {[%emt 0:01:26]} Kd5 {[%emt 0:02:47]} 43. Nc7+ {[%emt 0:01:55]} Kd6 {[%emt 0:02:36]} 44. Ne8+ {[%emt 0:00:13]} Kd5 {[%emt 0:06:12]} 45. Nc7+ {[%emt 0:00:17] Ke6} 1/2-1/2

[Event "EYCC Open-U12 2019"]
[Site "Bratislava"]
[Date "2019.08.10"]
[Round "9.38"]
[White "Culum, Sanjin"]
[Black "Fizer, Marek"]
[Result "1-0"]
[ECO "B90"]
[WhiteElo "1912"]
[BlackElo "1624"]
[Annotator "NA RC"]
[PlyCount "119"]
[EventDate "2019.08.02"]
[EventType "swiss"]
[EventCountry "SVK"]
[SourceTitle "playchess.com"]
[Source "ChessBase"]
[SourceQuality "1"]
[TimeControl "40/5400+30:1800+30"]

1. e4 {[%emt 0:00:00]} c5 {[%emt 0:00:00]} 2. Nf3 {[%emt 0:00:00]} d6 {[%emt 0:00:07]} 3. d4 {[%emt 0:00:04]} cxd4 {[%emt 0:00:13]} 4. Nxd4 {[%emt 0:00:02]} Nf6 {[%emt 0:00:52]} 5. Nc3 {[%emt 0:00:05]} a6 {[%emt 0:00:27]} 6. h3 {[%emt 0:00:10]} e5 {[%emt 0:00:57]} 7. Nde2 {[%emt 0:00:05]} Be6 {[%emt 0:00:55]} 8. g4 {[%emt 0:00:26]} Be7 {[%emt 0:04:11]} 9. Bg2 {[%emt 0:00:18]} Nc6 {[%emt 0:10:34]} 10. Be3 {[%emt 0:01:38]} Rc8 {[%emt 0:01:28]} 11. Ng3 {[%emt 0:02:06]} b5 {[%emt 0:02:50]} 12. O-O {[%emt 0:01:22]} O-O {[%emt 0:01:02]} 13. Nd5 {[%emt 0:01:52]} Bxd5 {[%emt 0:01:05]} 14. exd5 {[%emt 0:00:03]} Na5 {[%emt 0:00:40]} 15. b3 {[%emt 0:01:16]} Qc7 {[%emt 0:01:22]} 16. g5 {[%emt 0:00:43]} Nd7 {[%emt 0:01:16]} 17. Be4 {[%emt 0:00:21]} g6 {[%emt 0:01:18]} 18. Qg4 {[%emt 0:11:25]} f5 {[%emt 0:03:44]} 19. Bxf5 {[%emt 0:01:36]} gxf5 {[%emt 0:01:51]} 20. Nxf5 {[%emt 0:00:03]} Rce8 {[%emt 0:01:09]} 21. g6 {[%emt 0:00:45]} Rxf5 {[%emt 0:05:29]} 22. gxh7+ {[%emt 0:00:06]} Kh8 {[%emt 0:01:52]} 23. Qxf5 {[%emt 0:00:10]} Nf6 {[%emt 0:06:57]} 24. Qg6 {[%emt 0:00:26]} Bd8 {[%emt 0:01:51]} 25. Bg5 {[%emt 0:01:45]} Qg7 {[%emt 0:00:16]} 26. Bxf6 {[%emt 0:00:38]} Bxf6 {[%emt 0:00:04]} 27. Qxg7+ {[%emt 0:00:09]} Kxg7 {[%emt 0:00:16]} 28. a4 {[%emt 0:01:17]} b4 {[%emt 0:00:35]} 29. Rae1 {[%emt 0:01:27]} Nb7 {[%emt 0:01:46]} 30. Re2 {[%emt 0:07:34]} a5 {[%emt 0:01:02]} 31. Rfe1 {[%emt 0:00:35]} Nc5 {[%emt 0:00:24]} 32. f3 {[%emt 0:00:11]} Kxh7 {[%emt 0:00:16]} 33. Rg2 {[%emt 0:01:34]} Rg8 {[%emt 0:04:56]} 34. Rxg8 {[%emt 0:00:39]} Kxg8 {[%emt 0:00:05]} 35. Kh2 {[%emt 0:00:30]} Nd7 {[%emt 0:02:00]} 36. Kg3 {[%emt 0:00:53]} Nb6 {[%emt 0:00:38]} 37. Rd1 {[%emt 0:01:02]} Kf7 {[%emt 0:02:15]} 38. Kg4 {[%emt 0:00:24]} Kg6 {[%emt 0:00:17]} 39. h4 {[%emt 0:00:06]} Bg7 {[%emt 0:00:34]} 40. h5+ {[%emt 0:00:00]} Kf6 {[%emt 0:00:00]} 41. f4 {[%emt 0:05:14]} Bh6 {[%emt 0:01:25]} 42. fxe5+ {[%emt 0:00:07]} Kxe5 {[%emt 0:00:07]} 43. Re1+ {[%emt 0:00:25]} Kxd5 {[%emt 0:00:41]} 44. Kf5 {[%emt 0:00:11]} Bg7 {[%emt 0:04:17]} 45. Kg6 {[%emt 0:00:18]} Bb2 {[%emt 0:00:13]} 46. h6 {[%emt 0:00:23]} Kc5 {[%emt 0:02:30]} 47. h7 {[%emt 0:00:39]} d5 {[%emt 0:00:25]} 48. Re7 {[%emt 0:00:06]} Ba1 {[%emt 0:05:06]} 49. Rg7 {[%emt 0:00:20]} Bxg7 {[%emt 0:00:39]} 50. Kxg7 {[%emt 0:00:02]} Kd4 {[%emt 0:00:07]} 51. h8=Q {[%emt 0:00:09]} Kc3 {[%emt 0:00:10]} 52. Qh2 {[%emt 0:00:27]} Nc4 {[%emt 0:00:19]} 53. Qe2 {[%emt 0:00:48]} Na3 {[%emt 0:00:35]} 54. Qd3+ {[%emt 0:00:12]} Kb2 {[%emt 0:00:06]} 55. Qxd5 {[%emt 0:00:45]} Kxc2 {[%emt 0:00:30]} 56. Kf6 {[%emt 0:00:28]} Nb1 {[%emt 0:00:22]} 57. Qxa5 {[%emt 0:00:22]} Kxb3 {[%emt 0:00:04]} 58. Qd5+ {[%emt 0:00:11]} Kxa4 {[%emt 0:01:24]} 59. Qd1+ {[%emt 0:00:13]} Ka3 {[%emt 0:00:05]} 60. Qxb1 1-0

[Event "EYCC Open-U12 2019"]
[Site "Bratislava"]
[Date "2019.08.10"]
[Round "9.39"]
[White "Paseka, Matyas"]
[Black "Ivanov, Svetlen"]
[Result "1-0"]
[ECO "B40"]
[WhiteElo "1917"]
[BlackElo "1717"]
[Annotator "NA RC"]
[PlyCount "51"]
[EventDate "2019.08.02"]
[EventType "swiss"]
[EventCountry "SVK"]
[SourceTitle "playchess.com"]
[Source "ChessBase"]
[SourceQuality "1"]
[TimeControl "40/5400+30:1800+30"]

1. e4 {[%emt 0:00:00]} c5 {[%emt 0:00:00]} 2. Nf3 {[%emt 0:00:00]} e6 {[%emt 0:00:00]} 3. d4 {[%emt 0:00:00]} cxd4 {[%emt 0:00:03]} 4. Nxd4 {[%emt 0:00:00]} Nf6 {[%emt 0:00:02]} 5. Nc3 {[%emt 0:00:10]} Nc6 {[%emt 0:00:05]} 6. Ndb5 {[%emt 0:00:10]} Bc5 {[%emt 0:00:09]} 7. Bf4 {[%emt 0:00:31]} O-O {[%emt 0:00:23]} 8. Bc7 {[%emt 0:00:20]} Qe7 {[%emt 0:00:04]} 9. Bd6 {[%emt 0:00:11]} Bxd6 {[%emt 0:00:04]} 10. Qxd6 {[%emt 0:00:09]} Qd8 {[%emt 0:00:04]} 11. O-O-O {[%emt 0:00:36]} a6 {[%emt 0:01:47]} 12. Nd4 {[%emt 0:00:32]} Qa5 {[%emt 0:18:41]} 13. Nb3 {[%emt 0:05:22]} Qb6 {[%emt 0:06:06]} 14. f3 {[%emt 0:08:40]} Qe3+ {[%emt 0:02:42]} 15. Kb1 {[%emt 0:01:41]} b5 {[%emt 0:01:00]} 16. Bd3 {[%emt 0:06:10]} Bb7 {[%emt 0:03:44]} 17. Rde1 {[%emt 0:01:42]} Qb6 {[%emt 0:00:27]} 18. e5 {[%emt 0:05:58]} Ne8 {[%emt 0:00:25]} 19. Bxh7+ {[%emt 0:01:38]} Kxh7 {[%emt 0:00:39]} 20. Qxf8 {[%emt 0:00:10]} f5 {[%emt 0:07:39]} 21. Qf7 {[%emt 0:03:22]} a5 {[%emt 0:01:26]} 22. Ne4 {[%emt 0:20:13]} Qd8 {[%emt 0:09:15]} 23. Qh5+ {[%emt 0:00:57]} Kg8 {[%emt 0:00:05]} 24. Ng5 {[%emt 0:00:13]} Nf6 {[%emt 0:01:02]} 25. Qf7+ {[%emt 0:04:53]} Kh8 {[%emt 0:00:03]} 26. exf6 {[%emt 0:00:16]} 1-0

[Event "EYCC Open-U12 2019"]
[Site "Bratislava"]
[Date "2019.08.10"]
[Round "9.40"]
[White "Janeczko, Jakub"]
[Black "Codreanu, Marius"]
[Result "1/2-1/2"]
[ECO "B16"]
[WhiteElo "1663"]
[BlackElo "1834"]
[Annotator "NA RC"]
[PlyCount "48"]
[EventDate "2019.08.02"]
[EventType "swiss"]
[EventCountry "SVK"]
[SourceTitle "playchess.com"]
[Source "ChessBase"]
[SourceQuality "1"]
[TimeControl "40/5400+30:1800+30"]

1. e4 {[%emt 0:00:00]} c6 {[%emt 0:00:00]} 2. d4 {[%emt 0:00:03]} d5 {[%emt 0:00:00]} 3. Nc3 {[%emt 0:00:07]} dxe4 {[%emt 0:00:00]} 4. Nxe4 {[%emt 0:00:18]} Nf6 {[%emt 0:00:00]} 5. Nxf6+ {[%emt 0:03:28]} gxf6 {[%emt 0:00:34]} 6. Nf3 {[%emt 0:03:44]} Bf5 {[%emt 0:01:00]} 7. Bd3 {[%emt 0:02:32]} e6 {[%emt 0:04:16]} 8. Bf4 {[%emt 0:06:44]} Bg6 {[%emt 0:03:44]} 9. Qd2 {[%emt 0:05:01]} Nd7 {[%emt 0:05:34]} 10. O-O-O {[%emt 0:04:13]} Qb6 {[%emt 0:04:36]} 11. Rhe1 {[%emt 0:06:30]} O-O-O {[%emt 0:02:12]} 12. Qe2 {[%emt 0:06:35]} Bg7 {[%emt 0:14:33]} 13. Bxg6 {[%emt 0:05:12]} hxg6 {[%emt 0:00:09]} 14. Rd3 {[%emt 0:00:53]} Qb5 {[%emt 0:08:33]} 15. a4 {[%emt 0:14:58]} Qd5 {[%emt 0:14:56]} 16. Ra3 {[%emt 0:09:24]} Nb6 {[%emt 0:12:46]} 17. a5 {[%emt 0:02:53]} Nc4 {[%emt 0:06:06]} 18. Ra4 {[%emt 0:02:05]} Nd6 {[%emt 0:00:50]} 19. Bxd6 {[%emt 0:01:13]} Rxd6 {[%emt 0:01:48]} 20. a6 {[%emt 0:04:49]} b6 {[%emt 0:01:46]} 21. Kb1 {[%emt 0:03:34]} Qf5 {[%emt 0:05:42]} 22. Nd2 {[%emt 0:02:51]} Qb5 {[%emt 0:02:54]} 23. Ne4 {[%emt 0:03:56]} Rd7 {[%emt 0:02:19]} 24. Rc4 {[%emt 0:00:50]} Kd8 {[%emt 0:01:36]} 1/2-1/2

[Event "EYCC Open-U12 2019"]
[Site "Bratislava"]
[Date "2019.08.10"]
[Round "9.41"]
[White "Venkatesan, Kavin"]
[Black "Werner, Hong Quan Dan"]
[Result "1-0"]
[ECO "E61"]
[WhiteElo "1797"]
[BlackElo "1734"]
[Annotator "NA RC"]
[PlyCount "45"]
[EventDate "2019.08.02"]
[EventType "swiss"]
[EventCountry "SVK"]
[SourceTitle "playchess.com"]
[Source "ChessBase"]
[SourceQuality "1"]
[TimeControl "40/5400+30:1800+30"]

1. d4 {[%emt 0:00:00]} Nf6 {[%emt 0:00:02]} 2. c4 {[%emt 0:00:00]} g6 {[%emt 0:00:10]} 3. Nc3 {[%emt 0:00:00]} Bg7 {[%emt 0:00:27]} 4. Nf3 {[%emt 0:00:06]} d6 {[%emt 0:00:17]} 5. Bg5 {[%emt 0:00:05]} O-O {[%emt 0:02:32]} 6. e3 {[%emt 0:00:03]} h6 {[%emt 0:00:37]} 7. Bh4 {[%emt 0:00:18]} g5 {[%emt 0:01:21]} 8. Bg3 {[%emt 0:00:05]} c5 {[%emt 0:02:47]} 9. Be2 {[%emt 0:03:10]} cxd4 {[%emt 0:02:55]} 10. exd4 {[%emt 0:01:09]} Nh5 {[%emt 0:04:47]} 11. Qd3 {[%emt 0:05:45]} f5 {[%emt 0:03:18]} 12. Nd2 {[%emt 0:01:11]} Nf6 {[%emt 0:02:46]} 13. f4 {[%emt 0:03:21]} g4 {[%emt 0:04:54]} 14. O-O-O {[%emt 0:11:02]} Nh5 {[%emt 0:05:38]} 15. h3 {[%emt 0:05:05]} Nxg3 {[%emt 0:12:56]} 16. Qxg3 {[%emt 0:00:07]} Rf6 {[%emt 0:00:10]} 17. hxg4 {[%emt 0:00:25]} fxg4 {[%emt 0:04:44]} 18. Nd5 {[%emt 0:09:53]} Rf8 {[%emt 0:03:09]} 19. Bxg4 {[%emt 0:05:13]} Bxg4 {[%emt 0:00:31]} 20. Qxg4 {[%emt 0:00:05]} Kh8 {[%emt 0:00:45]} 21. Qe6 {[%emt 0:02:23]} Rf6 {[%emt 0:06:32]} 22. Nxf6 {[%emt 0:00:18]} exf6 23. Ne4 1-0

[Event "EYCC Open-U12 2019"]
[Site "Bratislava"]
[Date "2019.08.10"]
[Round "9.42"]
[White "Herwy, Jakub"]
[Black "Zlatkov, Anton"]
[Result "1-0"]
[ECO "B50"]
[WhiteElo "1685"]
[BlackElo "1782"]
[Annotator "NA RC"]
[PlyCount "57"]
[EventDate "2019.08.02"]
[EventType "swiss"]
[EventCountry "SVK"]
[SourceTitle "playchess.com"]
[Source "ChessBase"]
[SourceQuality "1"]
[TimeControl "40/5400+30:1800+30"]

1. e4 {[%emt 0:00:00]} c5 {[%emt 0:00:00]} 2. Nf3 {[%emt 0:00:00]} d6 {[%emt 0:00:00]} 3. c3 {[%emt 0:00:00]} Nf6 {[%emt 0:00:05]} 4. Bd3 {[%emt 0:00:00]} Bg4 {[%emt 0:00:42]} 5. O-O {[%emt 0:00:46]} Nc6 {[%emt 0:00:56]} 6. h3 {[%emt 0:01:09]} Bh5 {[%emt 0:00:26]} 7. Bc2 {[%emt 0:00:35]} e5 {[%emt 0:05:50]} 8. d3 {[%emt 0:00:51]} Be7 {[%emt 0:01:33]} 9. Nbd2 {[%emt 0:01:10]} O-O {[%emt 0:00:40]} 10. Re1 {[%emt 0:00:21]} d5 {[%emt 0:08:16]} 11. Qe2 {[%emt 0:03:13]} Re8 {[%emt 0:10:04]} 12. Nf1 {[%emt 0:02:47]} dxe4 {[%emt 0:06:42]} 13. dxe4 {[%emt 0:00:13]} Qc7 {[%emt 0:02:33]} 14. g4 {[%emt 0:00:51]} Bg6 {[%emt 0:00:27]} 15. Ng3 {[%emt 0:02:26]} Nd8 {[%emt 0:13:16]} 16. Ba4 {[%emt 0:12:09]} Rf8 {[%emt 0:00:23]} 17. Bb3 {[%emt 0:03:08]} a6 {[%emt 0:06:05]} 18. a4 {[%emt 0:00:14]} Rc8 {[%emt 0:01:04]} 19. Bc4 {[%emt 0:13:41]} Nc6 {[%emt 0:04:17]} 20. Bg5 {[%emt 0:13:04]} Ne8 {[%emt 0:07:46]} 21. Bxe7 {[%emt 0:03:51]} Qxe7 {[%emt 0:02:22]} 22. Nf5 {[%emt 0:00:38]} Qc7 {[%emt 0:02:15]} 23. Bd5 {[%emt 0:01:51]} Ne7 {[%emt 0:02:43]} 24. Rad1 {[%emt 0:06:17]} Nxd5 {[%emt 0:05:22]} 25. Rxd5 {[%emt 0:00:44]} Bxf5 {[%emt 0:00:12]} 26. exf5 {[%emt 0:02:05]} f6 {[%emt 0:00:06]} 27. Red1 {[%emt 0:00:07]} Rf7 {[%emt 0:02:24]} 28. Qc4 {[%emt 0:01:48]} Qc6 {[%emt 0:01:32]} 29. Rd7 {[%emt 0:01:41]} 1-0

[Event "EYCC Open-U12 2019"]
[Site "Bratislava"]
[Date "2019.08.10"]
[Round "9.43"]
[White "Lye, Sverre"]
[Black "Snitsarenko, Igor"]
[Result "1/2-1/2"]
[ECO "B51"]
[WhiteElo "1839"]
[BlackElo "1481"]
[Annotator "NA RC"]
[PlyCount "85"]
[EventDate "2019.08.02"]
[EventType "swiss"]
[EventCountry "SVK"]
[SourceTitle "playchess.com"]
[Source "ChessBase"]
[SourceQuality "1"]
[TimeControl "40/5400+30:1800+30"]

1. e4 {[%emt 0:00:00]} c5 {[%emt 0:00:00]} 2. Nf3 {[%emt 0:00:00]} d6 {[%emt 0:00:02]} 3. Bb5+ {[%emt 0:00:13]} Nd7 {[%emt 0:01:24]} 4. d4 {[%emt 0:02:45]} cxd4 {[%emt 0:00:15]} 5. Qxd4 {[%emt 0:00:50]} a6 {[%emt 0:01:16]} 6. Bxd7+ {[%emt 0:01:25]} Qxd7 {[%emt 0:00:19]} 7. O-O {[%emt 0:04:09]} Qc6 {[%emt 0:00:43]} 8. Nc3 {[%emt 0:02:51]} e5 {[%emt 0:01:37]} 9. Qd1 {[%emt 0:08:19]} h6 {[%emt 0:01:05]} 10. Nd5 {[%emt 0:07:20]} Be6 {[%emt 0:01:35]} 11. Re1 {[%emt 0:07:31]} Rc8 {[%emt 0:04:22]} 12. c3 {[%emt 0:01:31]} Ne7 {[%emt 0:04:24]} 13. Nb4 {[%emt 0:03:52]} Qd7 {[%emt 0:00:28]} 14. Be3 {[%emt 0:02:11]} Ng6 {[%emt 0:05:41]} 15. Nd5 {[%emt 0:04:12]} Bxd5 {[%emt 0:00:52]} 16. Qxd5 {[%emt 0:01:19]} Be7 {[%emt 0:01:10]} 17. Rad1 {[%emt 0:02:08]} Qe6 {[%emt 0:02:35]} 18. Qxb7 {[%emt 0:02:31]} O-O {[%emt 0:00:55]} 19. Qd5 {[%emt 0:02:58]} Rb8 {[%emt 0:03:48]} 20. b3 {[%emt 0:04:50]} Rfc8 {[%emt 0:02:44]} 21. c4 {[%emt 0:02:15]} Nf8 {[%emt 0:01:36]} 22. Qa5 {[%emt 0:04:56]} Ra8 {[%emt 0:04:01]} 23. Nd2 {[%emt 0:01:11]} Nd7 {[%emt 0:07:20]} 24. Nf1 {[%emt 0:03:42]} Kh7 {[%emt 0:03:11]} 25. Ng3 {[%emt 0:01:30]} g6 {[%emt 0:00:27]} 26. Qd2 {[%emt 0:02:33]} h5 {[%emt 0:02:52]} 27. Ne2 {[%emt 0:04:34]} f5 {[%emt 0:06:10]} 28. exf5 {[%emt 0:02:55]} gxf5 {[%emt 0:13:28]} 29. Bg5 {[%emt 0:03:34]} Nf6 {[%emt 0:00:25]} 30. Nf4 {[%emt 0:03:25]} Qf7 {[%emt 0:01:58]} 31. Qe2 {[%emt 0:04:15]} Ne4 {[%emt 0:11:14]} 32. Bxe7 {[%emt 0:00:54]} exf4 {[%emt 0:09:08]} 33. Bxd6 {[%emt 0:02:42]} Re8 {[%emt 0:00:59]} 34. Qf1 {[%emt 0:01:34]} f3 {[%emt 0:00:25]} 35. g3 {[%emt 0:01:57]} Re6 {[%emt 0:01:34]} 36. Bb4 {[%emt 0:01:11]} a5 {[%emt 0:00:17]} 37. Bd2 {[%emt 0:01:08]} a4 {[%emt 0:02:27]} 38. Re3 {[%emt 0:01:30]} axb3 {[%emt 0:00:26]} 39. axb3 {[%emt 0:00:10]} Ra2 {[%emt 0:00:41]} 40. Be1 {[%emt 0:00:00]} Qg6 {[%emt 0:00:00]} 41. Rxf3 {[%emt 0:02:50]} Qg4 {[%emt 0:04:46]} 42. Qd3 {[%emt 0:02:09]} Rd6 {[%emt 0:03:22]} 43. Qb1 {[%emt 0:02:01]} 1/2-1/2

[Event "EYCC Open-U12 2019"]
[Site "Bratislava"]
[Date "2019.08.10"]
[Round "9.44"]
[White "Janous, Marek"]
[Black "Kolani, Arjun"]
[Result "1/2-1/2"]
[ECO "C54"]
[WhiteElo "1717"]
[BlackElo "1699"]
[Annotator "NA RC"]
[PlyCount "70"]
[EventDate "2019.08.02"]
[EventType "swiss"]
[EventCountry "SVK"]
[SourceTitle "playchess.com"]
[Source "ChessBase"]
[SourceQuality "1"]
[TimeControl "40/5400+30:1800+30"]

1. e4 {[%emt 0:00:00]} e5 {[%emt 0:00:00]} 2. Nf3 {[%emt 0:00:00]} Nc6 {[%emt 0:00:00]} 3. d4 {[%emt 0:00:00]} exd4 {[%emt 0:00:00]} 4. Bc4 {[%emt 0:00:43]} Bc5 {[%emt 0:01:03]} 5. c3 {[%emt 0:00:46]} Nf6 {[%emt 0:00:11]} 6. cxd4 {[%emt 0:00:05]} Bb4+ {[%emt 0:00:15]} 7. Nc3 {[%emt 0:00:05]} Nxe4 {[%emt 0:00:11]} 8. O-O {[%emt 0:00:13]} Bxc3 {[%emt 0:00:11]} 9. d5 {[%emt 0:01:30]} Bf6 {[%emt 0:00:11]} 10. Re1 {[%emt 0:00:23]} Ne7 {[%emt 0:00:12]} 11. Rxe4 {[%emt 0:02:01]} d6 {[%emt 0:00:34]} 12. Qe2 {[%emt 0:04:16]} O-O {[%emt 0:06:01]} 13. Bf4 {[%emt 0:20:05]} Ng6 {[%emt 0:09:24]} 14. Bg3 {[%emt 0:00:30]} Bf5 {[%emt 0:05:11]} 15. Re3 {[%emt 0:00:25]} Re8 {[%emt 0:10:17]} 16. Rd1 {[%emt 0:10:29]} Bg4 {[%emt 0:10:47]} 17. b3 {[%emt 0:03:09]} Rxe3 {[%emt 0:06:14]} 18. Qxe3 {[%emt 0:01:44]} Qe8 {[%emt 0:07:12]} 19. Qd3 {[%emt 0:09:13]} a6 {[%emt 0:07:27]} 20. Re1 {[%emt 0:01:38]} Qd7 {[%emt 0:01:09]} 21. Qe3 {[%emt 0:01:12]} Bxf3 {[%emt 0:03:07]} 22. Qxf3 Re8 {[%emt 0:03:06]} 23. Rxe8+ {[%emt 0:01:14]} Qxe8 {[%emt 0:00:08]} 24. h3 {[%emt 0:00:04]} Be5 {[%emt 0:09:18]} 25. Qe3 {[%emt 0:01:12]} Kf8 {[%emt 0:06:49]} 26. Qa7 {[%emt 0:23:24]} Bxg3 {[%emt 0:03:45]} 27. fxg3 {[%emt 0:00:21]} Qc8 {[%emt 0:02:05]} 28. a4 {[%emt 0:00:47]} Ne5 {[%emt 0:02:40]} 29. Bf1 {[%emt 0:00:33]} c6 {[%emt 0:03:29]} 30. dxc6 {[%emt 0:01:16]} Qxc6 {[%emt 0:00:25]} 31. b4 {[%emt 0:02:15]} Ke7 {[%emt 0:02:28]} 32. Kh2 {[%emt 0:00:46]} f6 {[%emt 0:01:35]} 33. b5 {[%emt 0:00:21]} axb5 {[%emt 0:00:20]} 34. Bxb5 {[%emt 0:00:11]} Qd5 {[%emt 0:00:43]} 35. Ba6 Nf3+ {Bb5 Ne5} 1/2-1/2

[Event "EYCC Open-U12 2019"]
[Site "Bratislava"]
[Date "2019.08.10"]
[Round "9.45"]
[White "Wahlgreen, Noah"]
[Black "Ryabukhin, Roman"]
[Result "0-1"]
[ECO "B13"]
[WhiteElo "1743"]
[BlackElo "1445"]
[Annotator "NA RC"]
[PlyCount "58"]
[EventDate "2019.08.02"]
[EventType "swiss"]
[EventCountry "SVK"]
[SourceTitle "playchess.com"]
[Source "ChessBase"]
[SourceQuality "1"]
[TimeControl "40/5400+30:1800+30"]

1. e4 {[%emt 0:00:00]} c6 {[%emt 0:00:00]} 2. d4 {[%emt 0:00:30]} d5 {[%emt 0:00:30]} 3. exd5 {[%emt 0:00:30]} cxd5 {[%emt 0:00:30]} 4. Bd3 {[%emt 0:00:30]} Nc6 {[%emt 0:00:30]} 5. c3 {[%emt 0:00:30]} Nf6 {[%emt 0:00:30]} 6. h3 {[%emt 0:00:00]} e5 {[%emt 0:00:00]} 7. dxe5 {[%emt 0:00:00]} Nxe5 {[%emt 0:00:00]} 8. Be2 {[%emt 0:01:13]} Bc5 {[%emt 0:00:00]} 9. Nf3 {[%emt 0:01:23]} Ng6 {[%emt 0:00:07]} 10. O-O {[%emt 0:04:49]} O-O {[%emt 0:00:04]} 11. Bg5 {[%emt 0:05:31]} Be6 {[%emt 0:02:20]} 12. Nh4 {[%emt 0:02:47]} h6 {[%emt 0:04:28]} 13. Nxg6 {[%emt 0:00:06]} fxg6 {[%emt 0:00:12]} 14. Be3 {[%emt 0:06:28]} Bxe3 {[%emt 0:00:15]} 15. fxe3 {[%emt 0:00:04]} Qb6 {[%emt 0:00:14]} 16. Qc1 {[%emt 0:11:18]} Bf5 {[%emt 0:08:35]} 17. Bf3 {[%emt 0:04:33]} Rfe8 {[%emt 0:00:47]} 18. Re1 {[%emt 0:00:46]} Be4 {[%emt 0:02:21]} 19. Nd2 {[%emt 0:01:09]} Re5 {[%emt 0:04:56]} 20. Nxe4 {[%emt 0:01:40]} Nxe4 {[%emt 0:01:41]} 21. Qc2 {[%emt 0:02:35]} Ng5 {[%emt 0:03:33]} 22. Qd2 {[%emt 0:03:46]} Nxf3+ {[%emt 0:02:06]} 23. gxf3 {[%emt 0:00:20]} Rae8 {[%emt 0:01:25]} 24. Kf2 {[%emt 0:00:18]} Rxe3 {[%emt 0:06:02]} 25. Qxd5+ {[%emt 0:03:35]} Kh7 {[%emt 0:01:09]} 26. Qb3 {[%emt 0:05:52]} Re2+ {[%emt 0:00:55]} 27. Kg3 {[%emt 0:01:35]} Qf2+ {[%emt 0:00:04]} 28. Kg4 {[%emt 0:00:15]} h5+ {[%emt 0:00:14]} 29. Kf4 {[%emt 0:00:19]} Qh4# {[%emt 0:00:09]} 0-1